[Event "*** Titled Tuesday Blitz"]
[Site "Chess.com"]
[Date "2021.03.30"]
[Round "10"]
[White "MF1966Idrisov"]
[Black "AttilaTurzo"]
[Result "0-1"]
[WhiteElo "2369"]
[BlackElo "2500"]
[TimeControl "180+1"]
[EndTime "11:58:25 PDT"]
[Termination "AttilaTurzo won by resignation"]

1. Nf3 {[%clk 0:03:00.9]} 1... d5 {[%clk 0:02:29.5]} 2. b3 {[%clk 0:03:00.3]}
2... c6 {[%clk 0:02:29.1]} 3. Bb2 {[%clk 0:03:00.5]} 3... Bg4 {[%clk 0:02:28.6]}
4. e3 {[%clk 0:03:00.6]} 4... Nd7 {[%clk 0:02:28.1]} 5. Be2 {[%clk 0:03:00.8]}
5... Ngf6 {[%clk 0:02:27.6]} 6. d4 {[%clk 0:03:00.4]} 6... e6 {[%clk 0:02:27.6]}
7. Nbd2 {[%clk 0:03:00.6]} 7... Bd6 {[%clk 0:02:21.8]} 8. Ne5 {[%clk 0:03:00.3]}
8... Bxe2 {[%clk 0:02:20.3]} 9. Qxe2 {[%clk 0:03:00.1]} 9... O-O {[%clk
0:02:16.4]} 10. O-O {[%clk 0:02:59.5]} 10... Qe7 {[%clk 0:02:03.6]} 11. a3
{[%clk 0:02:57.3]} 11... c5 {[%clk 0:02:01.1]} 12. c4 {[%clk 0:02:56.5]} 12...
cxd4 {[%clk 0:02:00]} 13. exd4 {[%clk 0:02:56.8]} 13... dxc4 {[%clk 0:02:00.4]}
14. Ndxc4 {[%clk 0:02:56.2]} 14... Nd5 {[%clk 0:01:58.3]} 15. f4 {[%clk
0:02:45.8]} 15... N7b6 {[%clk 0:01:41.5]} 16. Rac1 {[%clk 0:02:33.6]} 16... Rac8
{[%clk 0:01:41.4]} 17. g3 {[%clk 0:02:28.7]} 17... Nf6 {[%clk 0:01:36.8]} 18.
Nxb6 {[%clk 0:02:25.3]} 18... axb6 {[%clk 0:01:37.7]} 19. b4 {[%clk 0:02:21]}
19... Bxe5 {[%clk 0:01:31.3]} 20. dxe5 {[%clk 0:02:17.9]} 20... Nd5 {[%clk
0:01:30.4]} 21. Bd4 {[%clk 0:02:17]} 21... Qd7 {[%clk 0:01:28.1]} 22. Qf2 {[%clk
0:02:06.4]} 22... b5 {[%clk 0:01:22.8]} 23. Bc5 {[%clk 0:02:03]} 23... Rfe8
{[%clk 0:01:19.6]} 24. Bd6 {[%clk 0:02:00.2]} 24... Rc4 {[%clk 0:01:14.4]} 25.
Rcd1 {[%clk 0:01:42.8]} 25... f5 {[%clk 0:01:07.1]} 26. Qf3 {[%clk 0:01:29.9]}
26... Qc6 {[%clk 0:00:57.4]} 27. Rd3 {[%clk 0:01:28.1]} 27... Rc8 {[%clk
0:00:48.7]} 28. Rfd1 {[%clk 0:01:24.5]} 28... Rc1 {[%clk 0:00:45.4]} 29. h4
{[%clk 0:01:12.6]} 29... Rxd1+ {[%clk 0:00:41.3]} 30. Rxd1 {[%clk 0:01:09.9]}
30... Nc3 {[%clk 0:00:32.3]} 31. Qxc6 {[%clk 0:01:07.4]} 31... Rxc6 {[%clk
0:00:33.2]} 32. Rd3 {[%clk 0:01:03.9]} 32... h5 {[%clk 0:00:32.4]} 33. Bc5
{[%clk 0:00:58]} 33... Nd5 {[%clk 0:00:31.9]} 34. Kg2 {[%clk 0:00:55.4]} 34...
Kf7 {[%clk 0:00:31.6]} 35. Kf3 {[%clk 0:00:53.9]} 35... g6 {[%clk 0:00:32]} 36.
Ke2 {[%clk 0:00:49.8]} 36... b6 {[%clk 0:00:32.2]} 37. Bf2 {[%clk 0:00:49.4]}
37... Rc2+ {[%clk 0:00:32.2]} 38. Kf3 {[%clk 0:00:49.1]} 38... Ke8 {[%clk
0:00:29.7]} 39. Bd4 {[%clk 0:00:48.3]} 39... Rc1 {[%clk 0:00:28.2]} 40. Bf2
{[%clk 0:00:46.6]} 40... Rc6 {[%clk 0:00:25.2]} 41. Be3 {[%clk 0:00:42.9]} 41...
Kd7 {[%clk 0:00:25.4]} 42. Bf2 {[%clk 0:00:42.5]} 42... Kc7 {[%clk 0:00:25.7]}
43. Be3 {[%clk 0:00:39.3]} 43... Rc2 {[%clk 0:00:24.4]} 44. Bf2 {[%clk
0:00:36.6]} 44... Kc6 {[%clk 0:00:24.5]} 45. Be3 {[%clk 0:00:36.3]} 45... Rc3
{[%clk 0:00:21.5]} 46. Rxc3+ {[%clk 0:00:33.1]} 46... Nxc3 {[%clk 0:00:22.4]}
47. Kf2 {[%clk 0:00:20.6]} 47... Nb1 {[%clk 0:00:19.3]} 48. Bc1 {[%clk
0:00:20.5]} 48... Kd5 {[%clk 0:00:19.6]} 49. Ke3 {[%clk 0:00:18.7]} 49... Kc4
{[%clk 0:00:19.8]} 50. Ke2 {[%clk 0:00:18.2]} 50... Kb3 {[%clk 0:00:19.2]} 51.
Kd3 {[%clk 0:00:18.1]} 51... Nxa3 {[%clk 0:00:18.7]} 52. Bxa3 {[%clk 0:00:18.1]}
52... Kxa3 {[%clk 0:00:19.1]} 53. Kc3 {[%clk 0:00:18.2]} 53... Ka4 {[%clk
0:00:19.5]} 0-1

[Event "*** Titled Tuesday Blitz"]
[Site "Chess.com"]
[Date "2021.03.30"]
[Round "10"]
[White "karwowskikacper"]
[Black "Fortitudine"]
[Result "1-0"]
[WhiteElo "2438"]
[BlackElo "2279"]
[TimeControl "180+1"]
[EndTime "11:58:26 PDT"]
[Termination "karwowskikacper won by resignation"]

1. b3 {[%clk 0:02:57.2]} 1... e5 {[%clk 0:02:57.7]} 2. Bb2 {[%clk 0:02:58.1]}
2... d6 {[%clk 0:02:57.7]} 3. c4 {[%clk 0:02:32.3]} 3... Nf6 {[%clk 0:02:56]} 4.
d4 {[%clk 0:02:29.5]} 4... exd4 {[%clk 0:02:55.7]} 5. Qxd4 {[%clk 0:02:24.7]}
5... Nc6 {[%clk 0:02:55.4]} 6. Qf4 {[%clk 0:02:23.7]} 6... Be7 {[%clk
0:02:50.8]} 7. e4 {[%clk 0:02:21.5]} 7... O-O {[%clk 0:02:49.5]} 8. f3 {[%clk
0:02:21.5]} 8... Nh5 {[%clk 0:02:38.9]} 9. Qd2 {[%clk 0:02:19]} 9... Bg5 {[%clk
0:02:31.3]} 10. Qf2 {[%clk 0:02:10.1]} 10... Bf6 {[%clk 0:02:24.1]} 11. Nc3
{[%clk 0:02:07.7]} 11... Re8 {[%clk 0:02:10.6]} 12. Nge2 {[%clk 0:02:07.2]}
12... Nb4 {[%clk 0:01:56.9]} 13. O-O-O {[%clk 0:01:56.3]} 13... c6 {[%clk
0:01:35.8]} 14. g4 {[%clk 0:01:45.2]} 14... Bxc3 {[%clk 0:01:35.7]} 15. Nxc3
{[%clk 0:01:36]} 15... Nf4 {[%clk 0:01:29.3]} 16. h4 {[%clk 0:01:34.9]} 16...
Qc7 {[%clk 0:00:55.9]} 17. Qd4 {[%clk 0:01:19.2]} 17... f6 {[%clk 0:00:41.7]}
18. Qxd6 {[%clk 0:01:16.9]} 18... Qxd6 {[%clk 0:00:42.6]} 19. Rxd6 {[%clk
0:01:17.5]} 19... Be6 {[%clk 0:00:37.9]} 20. a3 {[%clk 0:01:02.6]} 20... Na6
{[%clk 0:00:37.3]} 21. Kc2 {[%clk 0:01:00.8]} 21... Rad8 {[%clk 0:00:33.6]} 22.
Rxd8 {[%clk 0:00:57.5]} 22... Rxd8 {[%clk 0:00:34.5]} 23. Bc1 {[%clk 0:00:57.6]}
23... g5 {[%clk 0:00:31]} 24. Bxf4 {[%clk 0:00:53.1]} 24... gxf4 {[%clk
0:00:30.8]} 25. Ne2 {[%clk 0:00:49.4]} 25... b5 {[%clk 0:00:28]} 26. Nxf4 {[%clk
0:00:46.5]} 26... Bf7 {[%clk 0:00:26.1]} 27. cxb5 {[%clk 0:00:45]} 27... cxb5
{[%clk 0:00:24.8]} 28. Bxb5 {[%clk 0:00:45.9]} 28... Nc5 {[%clk 0:00:25.2]} 29.
Bc4 {[%clk 0:00:45.5]} 29... Bxc4 {[%clk 0:00:25]} 30. bxc4 {[%clk 0:00:46.4]}
30... Rc8 {[%clk 0:00:17.8]} 31. Rb1 {[%clk 0:00:42.7]} 31... Nd7 {[%clk
0:00:16.8]} 32. Rb4 {[%clk 0:00:35]} 32... Ne5 {[%clk 0:00:17.2]} 33. Nd5 {[%clk
0:00:33.3]} 33... Kf8 {[%clk 0:00:07.1]} 34. Kb3 {[%clk 0:00:25.9]} 34... Nxf3
{[%clk 0:00:07.1]} 35. Nxf6 {[%clk 0:00:24.7]} 35... Nd4+ {[%clk 0:00:07.2]} 36.
Kb2 {[%clk 0:00:23]} 36... h6 {[%clk 0:00:06]} 37. g5 {[%clk 0:00:20.4]} 37...
hxg5 {[%clk 0:00:06.9]} 38. hxg5 {[%clk 0:00:21.3]} 38... Ne6 {[%clk 0:00:07.2]}
39. g6 {[%clk 0:00:21.4]} 39... Kg7 {[%clk 0:00:07.6]} 40. Nd5 {[%clk
0:00:06.2]} 40... Kxg6 {[%clk 0:00:06.9]} 41. Ne7+ {[%clk 0:00:06.4]} 41... Kf7
{[%clk 0:00:06.1]} 42. Nxc8 {[%clk 0:00:07.3]} 42... Nc5 {[%clk 0:00:05.9]} 43.
Nd6+ {[%clk 0:00:06.8]} 43... Ke6 {[%clk 0:00:05.7]} 44. Nb5 {[%clk 0:00:07.1]}
44... Nd3+ {[%clk 0:00:05.6]} 45. Kc3 {[%clk 0:00:07.5]} 1-0

[Event "*** Titled Tuesday Blitz"]
[Site "Chess.com"]
[Date "2021.03.30"]
[Round "10"]
[White "ymoy"]
[Black "FoggyMorning"]
[Result "0-1"]
[WhiteElo "2711"]
[BlackElo "2615"]
[TimeControl "180+1"]
[EndTime "11:58:27 PDT"]
[Termination "FoggyMorning won on time"]

1. e4 {[%clk 0:03:00.9]} 1... c5 {[%clk 0:03:00.4]} 2. Nf3 {[%clk 0:03:00.6]}
2... d6 {[%clk 0:03:01.1]} 3. d4 {[%clk 0:03:01.3]} 3... cxd4 {[%clk 0:03:02]}
4. Nxd4 {[%clk 0:03:02.2]} 4... Nf6 {[%clk 0:03:02.7]} 5. Nc3 {[%clk 0:03:02.8]}
5... g6 {[%clk 0:03:03.4]} 6. Be2 {[%clk 0:02:54.3]} 6... Bg7 {[%clk 0:03:03]}
7. Be3 {[%clk 0:02:54.9]} 7... Nc6 {[%clk 0:03:03.5]} 8. Nb3 {[%clk 0:02:54.7]}
8... O-O {[%clk 0:03:03.6]} 9. O-O {[%clk 0:02:55.3]} 9... Be6 {[%clk
0:03:03.7]} 10. f4 {[%clk 0:02:55.1]} 10... Qc8 {[%clk 0:03:04.2]} 11. Bf3
{[%clk 0:02:52.1]} 11... Bg4 {[%clk 0:03:04.3]} 12. Kh1 {[%clk 0:02:48.9]} 12...
Bxf3 {[%clk 0:02:27.5]} 13. Qxf3 {[%clk 0:02:47.2]} 13... Qg4 {[%clk 0:02:27.2]}
14. Rad1 {[%clk 0:02:37.9]} 14... Qxf3 {[%clk 0:02:25.1]} 15. Rxf3 {[%clk
0:02:38.8]} 15... Rfc8 {[%clk 0:02:19.5]} 16. a3 {[%clk 0:02:35.7]} 16... b5
{[%clk 0:02:10]} 17. h3 {[%clk 0:02:23.3]} 17... a5 {[%clk 0:01:56.6]} 18. Nxb5
{[%clk 0:01:58.7]} 18... Nxe4 {[%clk 0:01:55.3]} 19. c3 {[%clk 0:01:50.4]} 19...
a4 {[%clk 0:01:42.2]} 20. N3d4 {[%clk 0:01:48.7]} 20... Rab8 {[%clk 0:01:36.8]}
21. Nxc6 {[%clk 0:01:16.4]} 21... Rxc6 {[%clk 0:01:37.7]} 22. Nd4 {[%clk
0:01:16.9]} 22... Bxd4 {[%clk 0:01:34.6]} 23. Rxd4 {[%clk 0:01:17.8]} 23... f5
{[%clk 0:01:31.7]} 24. Rb4 {[%clk 0:01:11.9]} 24... Rxb4 {[%clk 0:01:28.1]} 25.
axb4 {[%clk 0:01:12.8]} 25... a3 {[%clk 0:01:27.8]} 26. bxa3 {[%clk 0:01:13.7]}
26... Rxc3 {[%clk 0:01:27.9]} 27. Bb6 {[%clk 0:01:00.9]} 27... Rc1+ {[%clk
0:01:19.7]} 28. Kh2 {[%clk 0:01:00.7]} 28... Nd2 {[%clk 0:01:16.4]} 29. Rd3
{[%clk 0:00:52.9]} 29... Nf1+ {[%clk 0:00:55.8]} 30. Kg1 {[%clk 0:00:52.6]}
30... Ne3+ {[%clk 0:00:56.3]} 31. Kf2 {[%clk 0:00:48.1]} 31... Nc4 {[%clk
0:00:56.1]} 32. Bd4 {[%clk 0:00:44.1]} 32... e5 {[%clk 0:00:56]} 33. fxe5 {[%clk
0:00:44.1]} 33... dxe5 {[%clk 0:00:56.9]} 34. Bc5 {[%clk 0:00:44.8]} 34... Rc2+
{[%clk 0:00:55.5]} 35. Kg3 {[%clk 0:00:42.4]} 35... f4+ {[%clk 0:00:52.9]} 36.
Kf3 {[%clk 0:00:38.1]} 36... Kf7 {[%clk 0:00:35.9]} 37. Rd7+ {[%clk 0:00:29]}
37... Ke6 {[%clk 0:00:35.7]} 38. Rxh7 {[%clk 0:00:26.6]} 38... Rc3+ {[%clk
0:00:31.1]} 39. Ke2 {[%clk 0:00:24.4]} 39... Rxa3 {[%clk 0:00:29]} 40. Rg7
{[%clk 0:00:18.1]} 40... Kf5 {[%clk 0:00:27.2]} 41. b5 {[%clk 0:00:12.2]} 41...
Rb3 {[%clk 0:00:27.2]} 42. Rb7 {[%clk 0:00:11.4]} 42... Ke4 {[%clk 0:00:23.5]}
43. b6 {[%clk 0:00:11.5]} 43... Rb2+ {[%clk 0:00:24]} 44. Kd1 {[%clk 0:00:10.4]}
44... Rxg2 {[%clk 0:00:18.5]} 45. Rf7 {[%clk 0:00:07.5]} 45... Rb2 {[%clk
0:00:18.1]} 46. Rf6 {[%clk 0:00:06.6]} 46... f3 {[%clk 0:00:15.7]} 47. Kc1
{[%clk 0:00:06.4]} 47... Rb5 {[%clk 0:00:15.9]} 48. Bf2 {[%clk 0:00:05.6]} 48...
g5 {[%clk 0:00:15.4]} 49. Bg1 {[%clk 0:00:01.9]} 49... Ne3 {[%clk 0:00:14.3]}
0-1

[Event "*** Titled Tuesday Blitz"]
[Site "Chess.com"]
[Date "2021.03.30"]
[Round "10"]
[White "hypert"]
[Black "ural58"]
[Result "1-0"]
[WhiteElo "2539"]
[BlackElo "2486"]
[TimeControl "180+1"]
[EndTime "11:58:27 PDT"]
[Termination "hypert won by resignation"]

1. Nc3 {[%clk 0:03:00.9]} 1... d5 {[%clk 0:02:52.5]} 2. d3 {[%clk 0:03:01.8]}
2... d4 {[%clk 0:02:51.4]} 3. Nb1 {[%clk 0:03:01]} 3... g6 {[%clk 0:02:45.7]} 4.
h4 {[%clk 0:02:58.1]} 4... h6 {[%clk 0:02:44.8]} 5. g3 {[%clk 0:02:57.4]} 5...
Bg7 {[%clk 0:02:41.2]} 6. Bg2 {[%clk 0:02:57.4]} 6... Nc6 {[%clk 0:02:40.9]} 7.
c3 {[%clk 0:02:52.7]} 7... Nf6 {[%clk 0:02:35.4]} 8. cxd4 {[%clk 0:02:52.3]}
8... Nxd4 {[%clk 0:02:30.9]} 9. Nc3 {[%clk 0:02:51.4]} 9... O-O {[%clk
0:02:30.3]} 10. Nf3 {[%clk 0:02:50.8]} 10... Nxf3+ {[%clk 0:02:29.6]} 11. Bxf3
{[%clk 0:02:51.7]} 11... c6 {[%clk 0:02:30.1]} 12. Bf4 {[%clk 0:02:49]} 12...
Qa5 {[%clk 0:02:25.9]} 13. Qd2 {[%clk 0:02:48.5]} 13... Kh7 {[%clk 0:02:25]} 14.
O-O-O {[%clk 0:02:45.8]} 14... Bg4 {[%clk 0:02:21.6]} 15. Bxg4 {[%clk
0:02:30.2]} 15... Nxg4 {[%clk 0:02:18.9]} 16. Rdf1 {[%clk 0:02:30.6]} 16... e5
{[%clk 0:02:13.3]} 17. Be3 {[%clk 0:02:30.3]} 17... b5 {[%clk 0:02:12]} 18. Kb1
{[%clk 0:02:28.5]} 18... Rfd8 {[%clk 0:02:02]} 19. h5 {[%clk 0:02:24.7]} 19...
g5 {[%clk 0:02:00.1]} 20. Bc5 {[%clk 0:02:12.9]} 20... b4 {[%clk 0:01:56.1]} 21.
Ne4 {[%clk 0:02:12.5]} 21... f5 {[%clk 0:01:47.6]} 22. Bxb4 {[%clk 0:02:10.9]}
22... Qb5 {[%clk 0:01:47.5]} 23. Nd6 {[%clk 0:02:01.6]} 23... Rxd6 {[%clk
0:01:43.9]} 24. Bxd6 {[%clk 0:02:02.5]} 24... Rd8 {[%clk 0:01:38.3]} 25. Ba3
{[%clk 0:01:55.4]} 25... e4 {[%clk 0:01:34.6]} 26. f3 {[%clk 0:01:46]} 26... e3
{[%clk 0:01:17.8]} 27. Qc2 {[%clk 0:01:42.7]} 27... Nf2 {[%clk 0:01:17.5]} 28.
Rhg1 {[%clk 0:01:39.4]} 28... g4 {[%clk 0:01:14.7]} 29. fxg4 {[%clk 0:01:37.3]}
29... fxg4 {[%clk 0:01:15.6]} 30. Rc1 {[%clk 0:01:33.3]} 30... Qxh5 {[%clk
0:01:07.4]} 31. Qxc6 {[%clk 0:01:28.3]} 31... Qe5 {[%clk 0:01:07.2]} 32. Rc5
{[%clk 0:01:20.8]} 32... Qd4 {[%clk 0:00:59.4]} 33. Rc4 {[%clk 0:01:20.2]} 33...
Qe5 {[%clk 0:00:59.3]} 34. Rgc1 {[%clk 0:01:13.3]} 34... Qxg3 {[%clk 0:00:52.6]}
35. Qb7 {[%clk 0:01:05]} 35... Qe5 {[%clk 0:00:50.7]} 36. Rc7 {[%clk 0:01:04]}
36... Rg8 {[%clk 0:00:49.9]} 37. Re7 {[%clk 0:00:53.6]} 37... Qf6 {[%clk
0:00:48.8]} 38. Rcc7 {[%clk 0:00:52.7]} 38... g3 {[%clk 0:00:44.9]} 39. Rxe3
{[%clk 0:00:49.5]} 39... Qg6 {[%clk 0:00:42.6]} 40. Qg2 {[%clk 0:00:46.1]} 40...
Qb6 {[%clk 0:00:27.3]} 41. Qxg3 {[%clk 0:00:35.2]} 41... Nh1 {[%clk 0:00:23]}
42. Qf4 {[%clk 0:00:31.4]} 42... Kh8 {[%clk 0:00:20.5]} 43. Ree7 {[%clk
0:00:24.7]} 43... Qg6 {[%clk 0:00:19.7]} 44. Qc1 {[%clk 0:00:22.2]} 44... Ng3
{[%clk 0:00:18.7]} 45. Bd6 {[%clk 0:00:20.6]} 45... Nf5 {[%clk 0:00:16.1]} 46.
Rxg7 {[%clk 0:00:13]} 46... Nxg7 {[%clk 0:00:14.4]} 47. Be5 {[%clk 0:00:12.6]}
47... Qf5 {[%clk 0:00:13.1]} 48. Qxh6+ {[%clk 0:00:07.5]} 48... Qh7 {[%clk
0:00:12.6]} 49. Bxg7+ {[%clk 0:00:07.5]} 49... Rxg7 {[%clk 0:00:13.5]} 50. Rc8+
{[%clk 0:00:06.8]} 50... Rg8 {[%clk 0:00:13.9]} 51. Rxg8+ {[%clk 0:00:06.2]}
51... Kxg8 {[%clk 0:00:14.1]} 52. Qxh7+ {[%clk 0:00:06.8]} 52... Kxh7 {[%clk
0:00:15]} 53. Kc2 {[%clk 0:00:07.1]} 1-0

[Event "*** Titled Tuesday Blitz"]
[Site "Chess.com"]
[Date "2021.03.30"]
[Round "10"]
[White "Korchmar_Vasiliy"]
[Black "crazyluzhinTh3"]
[Result "1-0"]
[WhiteElo "2650"]
[BlackElo "2525"]
[TimeControl "180+1"]
[EndTime "11:58:29 PDT"]
[Termination "Korchmar_Vasiliy won on time"]

1. g4 {[%clk 0:03:00.9]} 1... d5 {[%clk 0:02:59.6]} 2. Bg2 {[%clk 0:03:00.5]}
2... c6 {[%clk 0:03:00.5]} 3. c4 {[%clk 0:03:00.3]} 3... dxc4 {[%clk 0:02:59.6]}
4. g5 {[%clk 0:02:50.7]} 4... e5 {[%clk 0:02:57.8]} 5. Qc2 {[%clk 0:02:44.8]}
5... Be6 {[%clk 0:02:57]} 6. Nf3 {[%clk 0:02:41.3]} 6... Nd7 {[%clk 0:02:55.6]}
7. h4 {[%clk 0:02:32.6]} 7... Qc7 {[%clk 0:02:44.3]} 8. Nc3 {[%clk 0:02:31.5]}
8... Ne7 {[%clk 0:02:38.2]} 9. b3 {[%clk 0:02:25.9]} 9... cxb3 {[%clk
0:02:21.2]} 10. axb3 {[%clk 0:02:26.8]} 10... Nd5 {[%clk 0:02:21.5]} 11. Nxd5
{[%clk 0:02:10.8]} 11... Bxd5 {[%clk 0:02:22.4]} 12. O-O {[%clk 0:02:09.4]}
12... e4 {[%clk 0:02:13.2]} 13. Nd4 {[%clk 0:02:08]} 13... Qf4 {[%clk
0:02:09.2]} 14. d3 {[%clk 0:02:02.9]} 14... Qxh4 {[%clk 0:01:24.3]} 15. dxe4
{[%clk 0:02:00.7]} 15... Bd6 {[%clk 0:01:22.3]} 16. f4 {[%clk 0:01:50.1]} 16...
Be6 {[%clk 0:01:03.2]} 17. Nf3 {[%clk 0:01:34.8]} 17... Qg3 {[%clk 0:01:02.5]}
18. f5 {[%clk 0:01:10.3]} 18... Ne5 {[%clk 0:00:42.5]} 19. fxe6 {[%clk
0:01:09.8]} 19... O-O {[%clk 0:00:42.5]} 20. e7 {[%clk 0:00:50.1]} 20... Rfe8
{[%clk 0:00:37.7]} 21. Bb2 {[%clk 0:00:34.1]} 21... Ng4 {[%clk 0:00:34]} 22. Qc3
{[%clk 0:00:23.2]} 22... Be5 {[%clk 0:00:33.4]} 23. Qxe5 {[%clk 0:00:19.5]}
23... Nxe5 {[%clk 0:00:30.3]} 24. Bxe5 {[%clk 0:00:20.4]} 24... Qg4 {[%clk
0:00:27.9]} 25. Bd6 {[%clk 0:00:17.2]} 25... Qxe4 {[%clk 0:00:26]} 26. Rad1
{[%clk 0:00:17.8]} 26... Rxe7 {[%clk 0:00:24.2]} 27. Bxe7 {[%clk 0:00:10.9]}
27... Qxe7 {[%clk 0:00:25.1]} 28. Rd2 {[%clk 0:00:06.3]} 28... Qe3+ {[%clk
0:00:24.1]} 29. Kh1 {[%clk 0:00:06.7]} 29... Rf8 {[%clk 0:00:23.7]} 30. b4
{[%clk 0:00:06]} 30... Qc3 {[%clk 0:00:20.6]} 31. Rd4 {[%clk 0:00:05.7]} 31...
a5 {[%clk 0:00:19.6]} 32. bxa5 {[%clk 0:00:05.6]} 32... Qxa5 {[%clk 0:00:20.5]}
33. Rf4 {[%clk 0:00:05.3]} 33... b5 {[%clk 0:00:19.3]} 34. Nd4 {[%clk 0:00:05]}
34... c5 {[%clk 0:00:17.7]} 35. Ne6 {[%clk 0:00:05.2]} 35... Qa2 {[%clk
0:00:09.4]} 36. Nxf8 {[%clk 0:00:04.4]} 36... Kxf8 {[%clk 0:00:10.3]} 37. Rf5
{[%clk 0:00:04.5]} 37... g6 {[%clk 0:00:08.5]} 38. Rxc5 {[%clk 0:00:04.1]} 38...
Qd2 {[%clk 0:00:08.5]} 39. Rxb5 {[%clk 0:00:03.7]} 39... Qe3 {[%clk 0:00:07.7]}
40. Rb8+ {[%clk 0:00:03.8]} 40... Kg7 {[%clk 0:00:07.8]} 41. Rb7 {[%clk
0:00:04.7]} 41... Qe8 {[%clk 0:00:06.3]} 42. Rbxf7+ {[%clk 0:00:04.2]} 42...
Qxf7 {[%clk 0:00:07.2]} 43. Rxf7+ {[%clk 0:00:03.7]} 43... Kxf7 {[%clk
0:00:08.1]} 44. Kh2 {[%clk 0:00:04]} 44... Kg7 {[%clk 0:00:09]} 45. Kg3 {[%clk
0:00:04.4]} 45... h6 {[%clk 0:00:09.9]} 46. gxh6+ {[%clk 0:00:04]} 46... Kxh6
{[%clk 0:00:10.2]} 47. Kg4 {[%clk 0:00:04.9]} 47... g5 {[%clk 0:00:11]} 48. Be4
{[%clk 0:00:03.7]} 1-0

[Event "*** Titled Tuesday Blitz"]
[Site "Chess.com"]
[Date "2021.03.30"]
[Round "10"]
[White "Niktlt"]
[Black "attack2mateU"]
[Result "0-1"]
[WhiteElo "2579"]
[BlackElo "2737"]
[TimeControl "180+1"]
[EndTime "11:58:30 PDT"]
[Termination "attack2mateU won by checkmate"]

1. c4 {[%clk 0:02:59]} 1... g6 {[%clk 0:02:58.1]} 2. Nc3 {[%clk 0:02:54.4]} 2...
c5 {[%clk 0:02:55.7]} 3. g3 {[%clk 0:02:47.1]} 3... Nc6 {[%clk 0:02:54.7]} 4.
Bg2 {[%clk 0:02:47.5]} 4... Bg7 {[%clk 0:02:55.2]} 5. Nf3 {[%clk 0:02:47.9]}
5... d6 {[%clk 0:02:55.5]} 6. O-O {[%clk 0:02:48.3]} 6... Bf5 {[%clk 0:02:56]}
7. e4 {[%clk 0:02:47.9]} 7... Bd7 {[%clk 0:02:44.7]} 8. d3 {[%clk 0:02:46.9]}
8... a6 {[%clk 0:02:41]} 9. Be3 {[%clk 0:02:45.7]} 9... e5 {[%clk 0:02:41.2]}
10. Rb1 {[%clk 0:02:45.1]} 10... Nge7 {[%clk 0:02:40.9]} 11. a3 {[%clk
0:02:44.4]} 11... O-O {[%clk 0:02:16.4]} 12. b4 {[%clk 0:02:43.5]} 12... b6
{[%clk 0:02:17]} 13. Nd5 {[%clk 0:02:42.4]} 13... Nxd5 {[%clk 0:02:04]} 14. exd5
{[%clk 0:02:43.3]} 14... Ne7 {[%clk 0:02:01.9]} 15. bxc5 {[%clk 0:02:43.1]}
15... bxc5 {[%clk 0:02:02]} 16. Rb7 {[%clk 0:02:42.6]} 16... Bc8 {[%clk
0:01:36.5]} 17. Rb3 {[%clk 0:02:42.1]} 17... Nf5 {[%clk 0:01:36.7]} 18. Qb1
{[%clk 0:02:41.2]} 18... Nxe3 {[%clk 0:01:35.9]} 19. fxe3 {[%clk 0:02:42.1]}
19... Bh6 {[%clk 0:01:36.4]} 20. e4 {[%clk 0:02:41]} 20... Qc7 {[%clk
0:01:10.2]} 21. Rb6 {[%clk 0:02:40.1]} 21... Bd7 {[%clk 0:00:52.6]} 22. Rb7
{[%clk 0:02:39.5]} 22... Qc8 {[%clk 0:00:53.2]} 23. Qb6 {[%clk 0:02:37.9]} 23...
Rb8 {[%clk 0:00:53.6]} 24. Rb1 {[%clk 0:02:37.6]} 24... Be3+ {[%clk 0:00:50.8]}
25. Kh1 {[%clk 0:02:36.5]} 25... Rxb7 {[%clk 0:00:44.9]} 26. Qxb7 {[%clk
0:02:35.3]} 26... Qd8 {[%clk 0:00:45.5]} 27. Qxa6 {[%clk 0:02:33]} 27... Bg4
{[%clk 0:00:46]} 28. Rb6 {[%clk 0:02:28.9]} 28... Qf6 {[%clk 0:00:43.1]} 29. Nh4
{[%clk 0:01:56.1]} 29... Qf2 {[%clk 0:00:38.1]} 30. Rb1 {[%clk 0:01:56.3]} 30...
Qc2 {[%clk 0:00:22.8]} 31. Qb6 {[%clk 0:01:54.2]} 31... Qxd3 {[%clk 0:00:21.7]}
32. Qb3 {[%clk 0:01:54.1]} 32... Qxb3 {[%clk 0:00:15.5]} 33. Rxb3 {[%clk
0:01:55]} 33... Bd4 {[%clk 0:00:16.3]} 34. Bf3 {[%clk 0:01:52.1]} 34... Bh3
{[%clk 0:00:12.4]} 35. Bg2 {[%clk 0:01:51.4]} 35... Bd7 {[%clk 0:00:12.5]} 36.
Bf1 {[%clk 0:01:50.1]} 36... Ra8 {[%clk 0:00:12.2]} 37. Nf3 {[%clk 0:01:46.4]}
37... Ra6 {[%clk 0:00:12]} 38. Nxd4 {[%clk 0:01:45.4]} 38... exd4 {[%clk
0:00:12.9]} 39. Bd3 {[%clk 0:01:45.8]} 39... Kg7 {[%clk 0:00:13.3]} 40. Kg2
{[%clk 0:01:44.8]} 40... Kf6 {[%clk 0:00:13.9]} 41. Kf3 {[%clk 0:01:44.9]} 41...
Ke5 {[%clk 0:00:14.6]} 42. Ke2 {[%clk 0:01:45.2]} 42... Bg4+ {[%clk 0:00:12.9]}
43. Kd2 {[%clk 0:01:45.2]} 43... Ra7 {[%clk 0:00:11]} 44. Kc2 {[%clk 0:01:44.5]}
44... Bf3 {[%clk 0:00:11.1]} 45. Kb2 {[%clk 0:01:35.9]} 45... Bxe4 {[%clk
0:00:11.6]} 46. Bf1 {[%clk 0:01:35.7]} 46... f5 {[%clk 0:00:10.6]} 47. Kc1
{[%clk 0:01:34.7]} 47... g5 {[%clk 0:00:10.5]} 48. Kd2 {[%clk 0:01:34.8]} 48...
h5 {[%clk 0:00:10]} 49. Be2 {[%clk 0:01:32.9]} 49... h4 {[%clk 0:00:10]} 50. Bf1
{[%clk 0:01:33.3]} 50... hxg3 {[%clk 0:00:10]} 51. hxg3 {[%clk 0:01:34.2]} 51...
Rh7 {[%clk 0:00:10.3]} 52. a4 {[%clk 0:01:33]} 52... Rh2+ {[%clk 0:00:09.9]} 53.
Ke1 {[%clk 0:01:27.6]} 53... Ra2 {[%clk 0:00:09.8]} 54. Bd3 {[%clk 0:01:28.1]}
54... Rxa4 {[%clk 0:00:08.7]} 55. Be2 {[%clk 0:01:27.9]} 55... Ra1+ {[%clk
0:00:06.4]} 56. Kf2 {[%clk 0:01:27.9]} 56... Ra2 {[%clk 0:00:07.3]} 57. Ke1
{[%clk 0:01:25]} 57... f4 {[%clk 0:00:07.4]} 58. gxf4+ {[%clk 0:01:25.2]} 58...
Kxf4 {[%clk 0:00:08.3]} 59. Rh3 {[%clk 0:01:25.9]} 59... g4 {[%clk 0:00:07.7]}
60. Rh4 {[%clk 0:01:26.2]} 60... Ke3 {[%clk 0:00:06.5]} 61. Bd1 {[%clk
0:01:23.5]} 61... Ra1 {[%clk 0:00:05.4]} 62. Rh6 {[%clk 0:01:20.4]} 62... g3
{[%clk 0:00:05.5]} 63. Re6 {[%clk 0:01:21.3]} 63... g2 {[%clk 0:00:05.4]} 64.
Rg6 {[%clk 0:01:22.2]} 64... d3 {[%clk 0:00:05.6]} 65. Rg3+ {[%clk 0:01:21.8]}
65... Kf4 {[%clk 0:00:06]} 66. Rg4+ {[%clk 0:01:22.2]} 66... Ke3 {[%clk
0:00:05.8]} 67. Rg3+ {[%clk 0:01:22.3]} 67... Kd4 {[%clk 0:00:06.5]} 68. Kd2
{[%clk 0:01:21.1]} 68... Ra2+ {[%clk 0:00:07]} 69. Ke1 {[%clk 0:01:20.8]} 69...
Kxc4 {[%clk 0:00:05.3]} 70. Rg4 {[%clk 0:01:18.5]} 70... Kd4 {[%clk 0:00:05.8]}
71. Rg5 {[%clk 0:01:14.4]} 71... c4 {[%clk 0:00:06]} 72. Rg4 {[%clk 0:01:15]}
72... c3 {[%clk 0:00:06.5]} 73. Bf3 {[%clk 0:01:15.9]} 73... Ke3 {[%clk
0:00:07]} 74. Bd1 {[%clk 0:01:11.2]} 74... d2# {[%clk 0:00:06.8]} 0-1